fUST/lending_fUST_20260109
["ID","MTS","AMOUNT","RATE_DAILY","PERIOD"]
[401022246,1767888125703,500.0,9.401e-05,2]
[401022250,1767888125877,500.0,9.538e-05,2]
[401023483,1767888211838,500.0,9.4e-05,2]
[401023487,1767888212002,500.0,9.537e-05,2]
[401023490,1767888212162,500.0,9.4e-05,2]
[401023494,1767888212373,500.0,9.537e-05,2]
[401024345,1767888361957,155.0,6e-05,2]
[401024347,1767888457062,500.0,9.591e-05,2]
[401024348,1767888476567,6098.13366544,9.578e-05,2]
[401024349,1767888480456,763.98,5.974e-05,2]
[401024350,1767888480751,763.98,5.974e-05,2]
[401024351,1767888485138,732.05,0.00030137,120]
[401024385,1767888562904,500.0,9.398e-05,2]
[401024386,1767888563475,500.0,9.398e-05,2]
[401024387,1767888564706,500.0,9.398e-05,2]
[401024418,1767888632050,-500.0,9.535e-05,2]
[401024420,1767888632059,-500.0,9.535e-05,2]
[401024422,1767888632068,-410.72508389,9.535e-05,2]
[401024424,1767888632079,-89.27491611,9.535e-05,2]
[401024425,1767888632089,-554.0,9.535e-05,2]
[401024426,1767888632098,-300.0,9.575e-05,2]
[401024427,1767888632107,-300.0,9.576e-05,2]
[401024429,1767888632116,-300.0,9.576e-05,2]
[401024431,1767888632125,-1200.0,9.576e-05,2]
[401024433,1767888632135,-234.0,9.577e-05,2]
[401024435,1767888632145,-50000.0,9.577e-05,2]
[401024437,1767888632154,-155.051901,9.577e-05,2]
[401024439,1767888632163,-500.0,9.577e-05,2]
[401024441,1767888632172,-501.23493955,9.577e-05,2]
[401024443,1767888632180,-201.07944769,9.577e-05,2]
[401024445,1767888632189,-240.16335044,9.577e-05,2]
[401024446,1767888632198,-500.0,9.577e-05,2]
[401024449,1767888632211,-500.0,9.577e-05,2]
[401024451,1767888632221,-500.0,9.577e-05,2]
[401024453,1767888632231,-500.0,9.577e-05,2]
[401024454,1767888632240,-500.0,9.577e-05,2]
[401024456,1767888632249,-500.0,9.577e-05,2]
[401024458,1767888632258,-485.38848549,9.577e-05,2]
[401024460,1767888632267,-500.0,9.577e-05,2]
[401024462,1767888632276,-502.13169587,9.577e-05,2]
[401024464,1767888632285,-500.0,9.577e-05,2]
[401024465,1767888632295,-500.0,9.577e-05,2]
[401024466,1767888632304,-500.0,9.577e-05,2]
[401024467,1767888632316,-500.0,9.577e-05,2]
[401024468,1767888632328,-500.0,9.577e-05,2]
[401024469,1767888632337,-500.0,9.577e-05,2]
[401024470,1767888632346,-500.0,9.577e-05,2]
[401024471,1767888632355,-500.0,9.577e-05,2]
[401024472,1767888632363,-250.29566857,9.577e-05,2]
[401024473,1767888632373,-500.0,9.577e-05,2]
[401024474,1767888632384,-500.0,9.577e-05,2]
[401024475,1767888632393,-500.0,9.577e-05,2]
[401024476,1767888632403,-500.0,9.577e-05,2]
[401024477,1767888632412,-500.0,9.577e-05,2]
[401024478,1767888632421,-500.0,9.577e-05,2]
[401024479,1767888632431,-500.0,9.577e-05,2]
[401024480,1767888632441,-500.0,9.577e-05,2]
[401024481,1767888632451,-500.0,9.577e-05,2]
[401024482,1767888632460,-500.0,9.577e-05,2]
[401024483,1767888632470,-500.0,9.577e-05,2]
[401024484,1767888632480,-500.0,9.577e-05,2]
[401024485,1767888632489,-500.0,9.577e-05,2]
[401024486,1767888632498,-500.0,9.577e-05,2]
[401024487,1767888632507,-500.0,9.577e-05,2]
[401024488,1767888632517,-500.0,9.577e-05,2]
[401024489,1767888632527,-500.0,9.577e-05,2]
[401024490,1767888632536,-500.0,9.577e-05,2]
[401024491,1767888632545,-500.0,9.577e-05,2]
[401024492,1767888632557,-88.68471777,9.577e-05,2]
[401024493,1767888632821,-411.31528223,9.577e-05,2]
[401024494,1767888632831,-188.68471777,9.577e-05,2]
[401024495,1767888632843,-311.31528223,9.577e-05,2]
[401024496,1767888632853,-500.0,9.577e-05,2]
[401024497,1767888632863,-30.28811847,9.577e-05,2]
[401024506,1767888638221,-469.71188153,9.577e-05,2]
[401024507,1767888638234,-500.0,9.577e-05,2]
[401024508,1767888638245,-500.0,9.577e-05,2]
[401024509,1767888638255,-500.0,9.577e-05,2]
[401024510,1767888638265,-500.0,9.577e-05,2]
[401024511,1767888638276,-500.0,9.577e-05,2]
[401024512,1767888638286,-500.0,9.577e-05,2]
[401024513,1767888638296,-500.0,9.577e-05,2]
[401024514,1767888638306,-500.0,9.577e-05,2]
[401024515,1767888638318,-500.0,9.577e-05,2]
[401024516,1767888638328,-500.0,9.577e-05,2]
[401024517,1767888638338,-500.0,9.577e-05,2]
[401024518,1767888638348,-500.0,9.577e-05,2]
[401024519,1767888638359,-500.0,9.577e-05,2]
[401024520,1767888638370,-500.0,9.577e-05,2]
[401024521,1767888638380,-500.0,9.577e-05,2]
[401024522,1767888638391,-500.0,9.577e-05,2]
[401024523,1767888638401,-500.0,9.577e-05,2]
[401024524,1767888638410,-500.0,9.577e-05,2]
[401024525,1767888638421,-500.0,9.577e-05,2]
[401024526,1767888638431,-500.0,9.577e-05,2]
[401024527,1767888638442,-500.0,9.577e-05,2]
[401024528,1767888638452,-500.0,9.577e-05,2]
[401024529,1767888638464,-500.0,9.577e-05,2]
[401024531,1767888638475,-500.0,9.577e-05,2]
[401024532,1767888638484,-500.0,9.577e-05,2]
[401024533,1767888638495,-500.0,9.577e-05,2]
[401024534,1767888638505,-500.0,9.577e-05,2]
[401024535,1767888638515,-500.0,9.577e-05,2]
[401024536,1767888638526,-500.0,9.577e-05,2]
[401024537,1767888638536,-500.0,9.577e-05,2]
[401024538,1767888638547,-500.0,9.577e-05,2]
[401024539,1767888638557,-500.0,9.577e-05,2]
[401024540,1767888638568,-500.0,9.577e-05,2]
[401024541,1767888638579,-500.0,9.577e-05,2]
[401024542,1767888638590,-500.0,9.577e-05,2]
[401024543,1767888638599,-500.0,9.577e-05,2]
[401024544,1767888638610,-500.0,9.577e-05,2]
[401024545,1767888638620,-500.0,9.577e-05,2]
[401024546,1767888638631,-500.0,9.577e-05,2]
[401024547,1767888638641,-627.99206154,9.577e-05,2]
[401024548,1767888638650,-500.0,9.577e-05,2]
[401024549,1767888638661,-500.0,9.577e-05,2]
[401024550,1767888638671,-500.0,9.577e-05,2]
[401024551,1767888638681,-500.0,9.577e-05,2]
[401024552,1767888638691,-590.0586602,9.577e-05,2]
[401024553,1767888638703,-500.0,9.577e-05,2]
[401024554,1767888638715,-500.0,9.577e-05,2]
[401024555,1767888638725,-500.0,9.577e-05,2]
[401024556,1767888638735,-500.0,9.577e-05,2]
[401024557,1767888638746,-500.0,9.577e-05,2]
[401024558,1767888638756,-500.0,9.577e-05,2]
[401024559,1767888638767,-500.0,9.577e-05,2]
[401024560,1767888638777,-500.0,9.577e-05,2]
[401024561,1767888638788,-500.0,9.577e-05,2]
[401024562,1767888638798,-500.0,9.577e-05,2]
[401024563,1767888638809,-500.0,9.577e-05,2]
[401024564,1767888638819,-500.0,9.577e-05,2]
[401024565,1767888638830,-500.0,9.577e-05,2]
[401024566,1767888638840,-500.0,9.577e-05,2]
[401024567,1767888638851,-425.02956686,9.577e-05,2]
[401024568,1767888638861,-500.0,9.577e-05,2]
[401024569,1767888638872,-500.0,9.577e-05,2]
[401024570,1767888638882,-500.0,9.577e-05,2]
[401024571,1767888638892,-500.0,9.577e-05,2]
[401024572,1767888638902,-500.0,9.577e-05,2]
[401024573,1767888638913,-500.0,9.577e-05,2]
[401024574,1767888638923,-500.0,9.577e-05,2]
[401024575,1767888638934,-500.0,9.577e-05,2]
[401024576,1767888638944,-500.0,9.577e-05,2]
[401024577,1767888638955,-500.0,9.577e-05,2]
[401024578,1767888638968,-500.0,9.577e-05,2]
[401024579,1767888638979,-500.0,9.577e-05,2]
[401024580,1767888638989,-500.0,9.577e-05,2]
[401024581,1767888639001,-500.0,9.577e-05,2]
[401024582,1767888639011,-1245.98474493,9.577e-05,2]
[401024583,1767888639022,-1245.98474493,9.577e-05,2]
[401024584,1767888639033,-562.13901976,9.578e-05,2]
[401024585,1767888639043,-27599.06971402,9.578e-05,2]
[401024586,1767888639058,-44663.53933988,9.578e-05,2]
[401024587,1767888639071,-9359.37325646,9.578e-05,2]
[401024588,1767888639083,-386.72667835,9.578e-05,2]
[401024589,1767888639110,-911893.15734585,9.578e-05,2]
[401024590,1767888639120,-500.0,9.672e-05,2]
[401024591,1767888639131,-500.0,9.672e-05,2]
[401024592,1767888639141,-500.0,9.672e-05,2]
[401024593,1767888639151,-500.0,9.672e-05,2]
[401024594,1767888639162,-500.0,9.672e-05,2]
[401024595,1767888639172,-500.0,9.672e-05,2]
[401024596,1767888639183,-519.03850189,9.672e-05,2]
[401024597,1767888639192,-500.0,9.672e-05,2]
[401024598,1767888639203,-500.0,9.672e-05,2]
[401024599,1767888639215,-500.0,9.672e-05,2]
[401024600,1767888639226,-500.0,9.672e-05,2]
[401024601,1767888639236,-500.0,9.672e-05,2]
[401024602,1767888639246,-500.0,9.672e-05,2]
[401024603,1767888639256,-500.0,9.672e-05,2]
[401024604,1767888639267,-500.0,9.672e-05,2]
[401024605,1767888639276,-500.0,9.672e-05,2]
[401024606,1767888639286,-500.0,9.672e-05,2]
[401024607,1767888639296,-500.0,9.672e-05,2]
[401024608,1767888639305,-500.0,9.672e-05,2]
[401024609,1767888639319,-500.0,9.672e-05,2]
[401024610,1767888639329,-500.0,9.672e-05,2]
[401024611,1767888639339,-500.0,9.672e-05,2]
[401024612,1767888639349,-500.0,9.672e-05,2]
[401024613,1767888639359,-500.0,9.672e-05,2]
[401024614,1767888639369,-500.0,9.672e-05,2]
[401024615,1767888639379,-500.0,9.672e-05,2]
[401024616,1767888639390,-500.0,9.672e-05,2]
[401024617,1767888639400,-500.0,9.672e-05,2]
[401024618,1767888639410,-500.0,9.672e-05,2]
[401024619,1767888639420,-500.0,9.672e-05,2]
[401024620,1767888639430,-500.0,9.672e-05,2]
[401024621,1767888639440,-500.0,9.672e-05,2]
[401024622,1767888639451,-471.34651686,9.672e-05,2]
[401024623,1767888639462,-500.0,9.672e-05,2]
[401024624,1767888639472,-500.0,9.672e-05,2]
[401024625,1767888639483,-500.0,9.672e-05,2]
[401024626,1767888639493,-500.0,9.672e-05,2]
[401024627,1767888639503,-500.0,9.672e-05,2]
[401024628,1767888639513,-500.0,9.672e-05,2]
[401024629,1767888639524,-500.0,9.672e-05,2]
[401024630,1767888639534,-500.0,9.672e-05,2]
[401024631,1767888639544,-500.0,9.672e-05,2]
[401024632,1767888639554,-500.0,9.672e-05,2]
[401024633,1767888639564,-500.0,9.672e-05,2]
[401024634,1767888639574,-500.0,9.672e-05,2]
[401024635,1767888639584,-500.0,9.672e-05,2]
[401024637,1767888639770,-500.0,9.672e-05,2]
[401024638,1767888639781,-500.0,9.672e-05,2]
[401024640,1767888639790,-500.0,9.672e-05,2]
[401024642,1767888639800,-500.0,9.672e-05,2]
[401024644,1767888639809,-500.0,9.672e-05,2]
[401024645,1767888639819,-500.0,9.672e-05,2]
[401024646,1767888639828,-500.0,9.672e-05,2]
[401024647,1767888639837,-500.0,9.672e-05,2]
[401024648,1767888639847,-500.0,9.672e-05,2]
[401024649,1767888639857,-500.0,9.672e-05,2]
[401024650,1767888639866,-500.0,9.672e-05,2]
[401024651,1767888639876,-500.0,9.672e-05,2]
[401024652,1767888639885,-500.0,9.672e-05,2]
[401024653,1767888639895,-500.0,9.672e-05,2]
[401024654,1767888639904,-500.0,9.672e-05,2]
[401024655,1767888639914,-500.0,9.672e-05,2]
[401024656,1767888639923,-250.0,9.672e-05,2]
[401024657,1767888639933,-500.0,9.672e-05,2]
[401024658,1767888639943,-500.0,9.672e-05,2]
[401024659,1767888639953,-500.0,9.672e-05,2]
[401024660,1767888639962,-500.0,9.672e-05,2]
[401024661,1767888639973,-500.0,9.672e-05,2]
[401024662,1767888639983,-175.48554534,9.672e-05,2]
[401024663,1767888640000,-153.05659276,9.672e-05,2]
[401024664,1767888640010,-205.4,9.672e-05,2]
[401024665,1767888640021,-4592.02768561,9.672e-05,2]
[401024666,1767888640033,-300.0,9.673e-05,2]
[401024667,1767888640044,-500.0,9.673e-05,2]
[401024668,1767888640054,-500.0,9.673e-05,2]
[401024669,1767888640065,-500.0,9.673e-05,2]
[401024670,1767888640074,-500.0,9.673e-05,2]
[401024671,1767888640083,-500.0,9.673e-05,2]
[401024672,1767888640092,-500.0,9.673e-05,2]
[401024673,1767888640102,-500.0,9.673e-05,2]
[401024674,1767888640111,-500.0,9.673e-05,2]
[401024675,1767888640120,-500.0,9.673e-05,2]
[401024677,1767888640129,-500.0,9.673e-05,2]
[401024679,1767888640138,-500.0,9.673e-05,2]
[401024681,1767888640147,-500.0,9.673e-05,2]
[401024683,1767888640157,-500.0,9.673e-05,2]
[401024685,1767888640166,-500.0,9.673e-05,2]
[401024687,1767888640175,-712.06243302,9.673e-05,2]
[401024689,1767888640184,-500.0,9.673e-05,2]
[401024691,1767888640193,-291.54632792,9.674e-05,2]
[401024693,1767888640203,-345.32757896,9.674e-05,2]
[401024695,1767888640212,-500.0,9.674e-05,2]
[401024697,1767888640221,-500.0,9.728e-05,2]
[401024699,1767888640231,-500.0,9.809e-05,2]
[401024701,1767888640241,-500.0,9.809e-05,2]
[401024703,1767888640251,-175.32284976,9.809e-05,2]
[401024705,1767888640260,-500.0,9.811e-05,2]
[401024707,1767888640269,-170.74581839,9.811e-05,2]
[401024709,1767888640280,-500.0,9.865e-05,2]
[401024711,1767888640289,-300.0,9.865e-05,2]
[401024713,1767888640298,-300.0,9.865e-05,2]
[401024715,1767888640308,-300.0,9.865e-05,2]
[401024717,1767888640321,-300.0,9.865e-05,2]
[401024719,1767888640331,-300.0,9.865e-05,2]
[401024721,1767888640340,-300.0,9.865e-05,2]
[401024723,1767888640350,-300.0,9.865e-05,2]
[401024725,1767888640361,-300.0,9.865e-05,2]
[401024727,1767888640370,-300.0,9.865e-05,2]
[401024729,1767888640380,-300.0,9.865e-05,2]
[401024731,1767888640391,-300.0,9.865e-05,2]
[401024733,1767888640400,-300.0,9.865e-05,2]
[401024735,1767888640410,-300.0,9.865e-05,2]
[401024737,1767888640419,-300.0,9.865e-05,2]
[401024739,1767888640428,-300.0,9.865e-05,2]
[401024741,1767888640438,-600.0,9.865e-05,2]
[401024744,1767888640448,-500.0,9.946e-05,2]
[401024746,1767888640459,-500.0,9.946e-05,2]
[401024748,1767888640468,-500.0,9.947e-05,2]
[401024750,1767888640478,-500.0,9.948e-05,2]
[401024752,1767888640487,-161.2966229,9.948e-05,2]
[401024754,1767888640497,-273.43,0.0001,2]
[401024756,1767888640506,-270.19624984,0.00010002,2]
[401024758,1767888640515,-167.46972508,0.00010002,2]
[401024760,1767888640524,-500.0,0.00010002,2]
[401024762,1767888640533,-285.39284337,0.00010002,2]
[401024764,1767888640543,-163.97622948,0.00010083,2]
[401024766,1767888640552,-500.0,0.00010083,2]
[401024768,1767888640561,-237.68947624,0.00010083,2]
[401024770,1767888640570,-500.0,0.00010085,2]
[401024772,1767888640580,-500.0,0.00010139,2]
[401024774,1767888640589,-296.63096237,0.0001022,2]
[401024776,1767888640598,-500.0,0.00010221,2]
[401024778,1767888640608,-500.0,0.00010222,2]
[401024780,1767888640618,-500.0,0.00010276,2]
[401024782,1767888640627,-500.0,0.00010359,2]
[401024784,1767888640636,-500.0,0.00010396,2]
[401024786,1767888640645,-437.89,0.00010396,2]
[401024788,1767888640654,-437.89,0.00010396,2]
[401024790,1767888640664,-437.89,0.00010396,2]
[401024792,1767888640673,-437.89,0.00010396,2]
[401024794,1767888640682,-437.89,0.00010396,2]
[401024796,1767888640692,-437.89,0.00010396,2]
[401024798,1767888640701,-437.91,0.00010396,2]
[401024800,1767888640712,-500.0,0.00010413,2]
[401024802,1767888640721,-500.0,0.00010496,2]
[401024804,1767888640730,-30542.18907501,0.000105,2]
[401024806,1767888640740,-420.0,0.00010533,2]
[401024808,1767888640749,-1680.0,0.00010534,2]
[401024810,1767888640759,-231.88170042,0.0001055,2]
[401024811,1767888640768,-500.0,0.00010633,2]
[401024812,1767888640777,-500.0,0.0001077,2]
[401024813,1767888640786,-720.0,0.00010852,2]
[401024814,1767888640795,-500.0,0.00010907,2]
[401024815,1767888640804,-647.3228485,0.00011,2]
[401024816,1767888640813,-500.0,0.00011044,2]
[401024817,1767888640822,-500.0,0.00011181,2]
[401024818,1767888640832,-157.78,0.00011208,2]
[401024819,1767888640841,-420.9785477,0.00011318,2]
[401024820,1767888640850,-663.32404332,0.00011578,2]
[401024821,1767888640858,-587.0,0.00011586,2]
[401024822,1767888640867,-2351.0,0.00011587,2]
[401024823,1767888640876,-864.0,0.00011937,2]
[401024824,1767888640885,-1000.0,0.00012,2]
[401024825,1767888640894,-661.30488016,0.00012139,2]
[401024826,1767888640903,-10141.41076664,0.00012192,2]
[401024827,1767888640912,-1005.01380698,0.00012192,2]
[401024828,1767888640921,-590.57,0.00012329,2]
[401024829,1767888640930,-10429.64,0.00012329,2]
[401024830,1767888640939,-8691.37,0.00012329,2]
[401024831,1767888640947,-7242.8,0.00012329,2]
[401024832,1767888640956,-6035.67,0.00012329,2]
[401024833,1767888640966,-5029.73,0.00012329,2]
[401024834,1767888640975,-4191.44,0.00012329,2]
[401024835,1767888640985,-3492.86,0.00012329,2]
[401024836,1767888640994,-2910.72,0.00012329,2]
[401024837,1767888641004,-2425.6,0.00012329,2]
[401024838,1767888641012,-2021.33,0.00012329,2]
[401024839,1767888641022,-1684.45,0.00012329,2]
[401024841,1767888641031,-1403.7,0.00012329,2]
[401024843,1767888641040,-1169.75,0.00012329,2]
[401024845,1767888641049,-974.8,0.00012329,2]
[401024847,1767888641059,-812.33,0.00012329,2]
[401024849,1767888641067,-676.94,0.00012329,2]
[401024851,1767888641076,-564.12,0.00012329,2]
[401024853,1767888641086,-470.1,0.00012329,2]
[401024855,1767888641095,-391.75,0.00012329,2]
[401024857,1767888641104,-326.46,0.00012329,2]
[401024859,1767888641114,-272.05,0.00012329,2]
[401024861,1767888641124,-226.7,0.00012329,2]
[401024863,1767888641133,-188.92,0.00012329,2]
[401024865,1767888641142,-157.43,0.00012329,2]
[401024867,1767888641152,-787.2,0.00012329,2]
[401024869,1767888641161,-250.0,0.00012654,2]
[401024871,1767888641171,-823.0,0.00012744,2]
[401024873,1767888641180,-3292.0,0.00012746,2]
[401024875,1767888641189,-352122.046067,0.00012875,2]
[401024877,1767888641198,-1000.0,0.00012999,2]
[401024879,1767888641209,-7140.42224514,0.00013,2]
[401024881,1767888641218,-1000.0,0.00013131,2]
[401024883,1767888641227,-500.44041054,0.00013273,2]
[401024884,1767888641237,-500.0,0.00013273,2]
[401024886,1767888641246,-500.0,0.00013273,2]
[401024889,1767888641255,-500.0,0.00013273,2]
[401024890,1767888641264,-500.0,0.00013273,2]
[401024892,1767888641274,-217.99026378,0.00013273,2]
[401024894,1767888641283,-500.47534245,0.00013273,2]
[401024897,1767888641293,-500.67584896,0.00013273,2]
[401024898,1767888641302,-500.0,0.00013273,2]
[401024901,1767888641311,-500.0,0.00013273,2]
[401024902,1767888641324,-500.0,0.00013273,2]
[401024905,1767888641334,-500.0,0.00013273,2]
[401024907,1767888641344,-500.0,0.00013273,2]
[401024909,1767888641353,-500.95990622,0.00013273,2]
[401024911,1767888641362,-500.0,0.00013273,2]
[401024913,1767888641372,-500.0,0.00013273,2]
[401024915,1767888641381,-500.0,0.00013273,2]
[401024916,1767888641392,-500.0,0.00013273,2]
[401024918,1767888641401,-500.0,0.00013273,2]
[401024920,1767888641411,-521.18042972,0.00013273,2]
[401024923,1767888641421,-500.0,0.00013273,2]
[401024924,1767888641430,-500.0,0.00013273,2]
[401024927,1767888641439,-500.0,0.00013273,2]
[401024929,1767888641448,-500.0,0.00013273,2]
[401024931,1767888641458,-500.20430941,0.00013273,2]
[401024933,1767888641468,-500.0,0.00013273,2]
[401024935,1767888641477,-500.0,0.00013273,2]
[401024937,1767888641486,-500.0,0.00013273,2]
[401024939,1767888641496,-500.0,0.00013273,2]
[401024941,1767888641505,-500.0,0.00013273,2]
[401024942,1767888641514,-500.0,0.00013273,2]
[401024944,1767888641523,-586.21143791,0.00013273,2]
[401024946,1767888641532,-500.0,0.00013273,2]
[401024948,1767888641541,-500.0,0.00013273,2]
[401024950,1767888641550,-611.12436165,0.00013273,2]
[401024952,1767888641559,-500.0,0.00013273,2]
[401024954,1767888641568,-500.0,0.00013273,2]
[401024956,1767888641578,-500.53895584,0.00013273,2]
[401024958,1767888641587,-500.0,0.00013273,2]
[401024960,1767888641597,-500.0,0.00013273,2]
[401024962,1767888641606,-500.65816552,0.00013273,2]
[401024964,1767888641615,-500.0,0.00013273,2]
[401024966,1767888641624,-500.0,0.00013273,2]
[401024968,1767888641633,-500.0,0.00013273,2]
[401024970,1767888641642,-500.0,0.00013273,2]
[401024972,1767888641652,-500.0,0.00013273,2]
[401024974,1767888641662,-205.95651824,0.00013273,2]
[401024976,1767888641671,-500.0,0.00013273,2]
[401024978,1767888641681,-500.0,0.00013273,2]
[401024980,1767888641690,-402.14527206,0.00013273,2]
[401024982,1767888641700,-500.0,0.00013273,2]
[401024984,1767888641709,-500.0,0.00013273,2]
[401024986,1767888641718,-500.0,0.00013273,2]
[401024988,1767888641728,-500.0,0.00013273,2]
[401024990,1767888641737,-500.0,0.00013273,2]
[401024992,1767888641746,-764.50906687,0.00013578,2]
[401024994,1767888641756,-5403.18556091,0.00013598,2]
[401024996,1767888641765,-300.0,0.00013673,2]
[401024998,1767888641775,-500.0,0.00013698,2]
[401025000,1767888641784,-500.0,0.00013698,2]
[401025002,1767888641793,-516.40835444,0.00013698,2]
[401025004,1767888641802,-500.0,0.00013698,2]
[401025006,1767888641811,-500.0,0.00013698,2]
[401025008,1767888641820,-500.0,0.00013698,2]
[401025010,1767888641830,-500.0,0.00013698,2]
[401025012,1767888641839,-500.0,0.00013698,2]
[401025014,1767888641848,-500.0,0.00013698,2]
[401025016,1767888641857,-500.0,0.00013698,2]
[401025018,1767888641867,-500.0,0.00013698,2]
[401025020,1767888641876,-500.0,0.00013698,2]
[401025022,1767888641885,-500.0,0.00013698,2]
[401025024,1767888641896,-500.0,0.00013698,2]
[401025026,1767888641905,-500.0,0.00013698,2]
[401025027,1767888641914,-500.0,0.00013698,2]
[401025029,1767888641923,-500.0,0.00013698,2]
[401025032,1767888641937,-500.0,0.00013698,2]
[401025034,1767888641947,-500.0,0.00013698,2]
[401025036,1767888641956,-500.0,0.00013698,2]
[401025038,1767888641966,-500.0,0.00013698,2]
[401025040,1767888641975,-391.55816214,0.00013698,2]
[401025042,1767888641984,-500.0,0.00013698,2]
[401025044,1767888641993,-500.0,0.00013698,2]
[401025046,1767888642002,-500.0,0.00013698,2]
[401025048,1767888642011,-500.0,0.00013698,2]
[401025050,1767888642020,-500.0,0.00013698,2]
[401025052,1767888642030,-500.0,0.00013698,2]
[401025054,1767888642038,-500.0,0.00013698,2]
[401025056,1767888642048,-500.0,0.00013698,2]
[401025058,1767888642056,-500.0,0.00013698,2]
[401025060,1767888642068,-500.0,0.00013698,2]
[401025062,1767888642077,-500.0,0.00013698,2]
[401025064,1767888642086,-500.0,0.00013698,2]
[401025066,1767888642095,-292.8148842,0.00013698,2]
[401025068,1767888642104,-567.14710405,0.00013698,2]
[401025070,1767888642114,-2589.26,0.00013698,2]
[401025072,1767888642123,-2589.26,0.00013698,2]
[401025074,1767888642133,-2589.26,0.00013698,2]
[401025076,1767888642142,-2589.26,0.00013698,2]
[401025077,1767888642151,-2589.26,0.00013698,2]
[401025079,1767888642160,-2589.26,0.00013698,2]
[401025081,1767888642170,-2589.26,0.00013698,2]
[401025083,1767888642180,-2589.26,0.00013698,2]
[401025085,1767888642189,-2589.26,0.00013698,2]
[401025087,1767888642198,-2589.26,0.00013698,2]
[401025089,1767888642209,-2589.26,0.00013698,2]
[401025091,1767888642218,-2589.26,0.00013698,2]
[401025093,1767888642227,-2589.26,0.00013698,2]
[401025095,1767888642236,-2589.26,0.00013698,2]
[401025097,1767888642246,-2589.26,0.00013698,2]
[401025099,1767888642255,-2589.26,0.00013698,2]
[401025101,1767888642264,-2589.26,0.00013698,2]
[401025103,1767888642273,-2589.26,0.00013698,2]
[401025105,1767888642282,-2589.26,0.00013698,2]
[401025107,1767888642292,-2589.26,0.00013698,2]
[401025109,1767888642301,-2589.26,0.00013698,2]
[401025111,1767888642312,-2589.26,0.00013698,2]
[401025113,1767888642325,-2589.26,0.00013698,2]
[401025115,1767888642335,-2589.4550931,0.00013698,2]
[401025117,1767888642345,-500.0,0.00013698,2]
[401025119,1767888642355,-500.0,0.00013698,2]
[401025121,1767888642364,-500.0,0.00013698,2]
[401025123,1767888642373,-181.48973521,0.00013698,2]
[401025125,1767888642382,-1358.36,0.00013698,2]
[401025127,1767888642394,-1358.36,0.00013698,2]
[401025129,1767888642405,-1358.36,0.00013698,2]
[401025131,1767888642415,-1358.36,0.00013698,2]
[401025133,1767888642424,-1358.36,0.00013698,2]
[401025135,1767888642433,-1358.36,0.00013698,2]
[401025137,1767888642443,-1358.36,0.00013698,2]
[401025139,1767888642453,-1358.36,0.00013698,2]
[401025141,1767888642464,-1358.36,0.00013698,2]
[401025143,1767888642473,-1358.36,0.00013698,2]
[401025145,1767888642482,-1358.36,0.00013698,2]
[401025147,1767888642492,-1358.36,0.00013698,2]
[401025149,1767888642501,-1358.36,0.00013698,2]
[401025150,1767888642510,-1358.36,0.00013698,2]
[401025152,1767888642519,-1358.36,0.00013698,2]
[401025154,1767888642529,-1358.36,0.00013698,2]
[401025156,1767888642538,-1358.36,0.00013698,2]
[401025158,1767888642548,-1358.36,0.00013698,2]
[401025160,1767888642557,-1358.36,0.00013698,2]
[401025163,1767888642566,-1358.36,0.00013698,2]
[401025165,1767888642575,-1358.36,0.00013698,2]
[401025167,1767888642585,-1358.36,0.00013698,2]